bitfinex/quotes_BTCUSD_20250211
["timestamp","ask_amount","ask_price","bid_price","bid_amount"]
[1739293631136,0.19344032,96315.0,96314.0,0.008]
[1739293631585,0.31554032,96315.0,96314.0,0.003]
[1739293631946,0.31654032,96315.0,96314.0,0.008]
[1739293632549,0.155762,96301.0,96294.0,0.00099173]
[1739293632753,0.155759,96303.0,96294.0,0.00099173]
[1739293632936,0.155761,96302.0,96294.0,0.00099173]
[1739293633318,0.155762,96301.0,96294.0,0.00099173]
[1739293633518,0.155762,96301.0,96289.0,0.15578]
[1739293633896,0.207677,96304.0,96290.0,0.155778]
[1739293634097,0.155762,96301.0,96299.0,0.00022407]
[1739293634419,0.005,96302.0,96299.0,0.00022407]
[1739293634420,0.155763,96300.0,96299.0,0.00022407]
[1739293636290,0.19051093,96300.0,96299.0,0.00022407]
[1739293636553,0.155763,96300.0,96299.0,0.00022407]
[1739293636966,0.160763,96300.0,96299.0,0.00122407]
[1739293637369,0.161763,96300.0,96299.0,0.00122407]
[1739293637730,0.155774,96293.0,96292.0,0.00099174]
[1739293638647,0.155776,96292.0,96280.0,0.15678574]
[1739293638848,0.155774,96293.0,96281.0,0.155793]
[1739293639544,0.207674,96305.0,96280.0,0.00099174]
[1739293639711,0.207674,96305.0,96279.0,0.0012156]
[1739293639919,0.155775,96293.0,96292.0,0.001]
[1739293640327,0.207696,96295.0,96292.0,0.001]
[1739293640660,0.155789,96284.0,96279.0,0.0012156]
[1739293640808,0.207701,96292.0,96280.0,0.00099174]
[1739293641233,0.155778,96291.0,96280.0,0.00099174]
[1739293641595,0.155781,96289.0,96280.0,0.00099174]
[1739293641752,0.155777,96291.0,96280.0,0.00099174]
[1739293641955,0.00013334,96289.0,96279.0,0.1570126]
[1739293642160,0.00013334,96289.0,96280.0,0.155795]
[1739293642325,0.00013334,96289.0,96279.0,0.0012156]
[1739293642529,0.00013334,96289.0,96279.0,0.00099183]
[1739293642921,0.00013334,96289.0,96279.0,0.15678783]
[1739293643126,0.003,96292.0,96280.0,0.155794]
[1739293643371,0.35,96293.0,96280.0,0.00044492]
[1739293643568,0.505775,96293.0,96280.0,0.15623992]
[1739293643726,0.001,96289.0,96280.0,0.15623992]
[1739293644122,0.001,96289.0,96281.0,0.155793]
[1739293644417,0.505775,96293.0,96280.0,0.00044492]
[1739293644623,0.354,96293.0,96282.0,0.155792]
[1739293644807,0.155776,96292.0,96281.0,0.00099183]
[1739293645154,0.354,96293.0,96281.0,0.00099183]
[1739293645355,0.354,96293.0,96281.0,0.00199183]
[1739293645555,0.155789,96284.0,96280.0,0.00044492]
[1739293645779,0.0803,96292.0,96280.0,0.00044492]
[1739293645985,0.155793,96281.0,96280.0,0.00044492]
[1739293646587,0.0803,96292.0,96280.0,0.00143675]
[1739293646791,0.155785,96287.0,96280.0,0.00143675]
[1739293646958,0.155785,96286.0,96280.0,0.00143675]
[1739293647158,0.155784,96287.0,96280.0,0.00143675]
[1739293647403,0.351,96293.0,96241.0,0.09270615]
[1739293647776,0.156793,96281.0,96280.0,0.00099169]
[1739293647980,0.00044519,96287.0,96280.0,0.00099169]
[1739293648185,0.155793,96281.0,96280.0,0.00099169]
[1739293648336,0.155792,96282.0,96280.0,0.00099169]
[1739293648544,0.00044519,96287.0,96262.0,0.00099169]
[1739293648891,0.155795,96280.0,96264.0,0.155821]
[1739293649021,0.03534452,96286.0,96262.0,0.00099169]
[1739293649495,0.1558,96277.0,96261.0,0.15681769]
[1739293649723,0.207716,96285.0,96261.0,0.00099169]
[1739293649942,0.155802,96276.0,96261.0,0.00099169]
[1739293650540,0.207716,96285.0,96260.0,0.00099169]
[1739293650749,0.15581,96271.0,96260.0,0.00099169]
[1739293650951,0.207716,96285.0,96260.0,0.00099169]
[1739293651105,0.155809,96272.0,96260.0,0.00099169]
[1739293651304,0.004,96276.0,96260.0,0.00099169]
[1739293651506,0.004,96276.0,96258.0,0.15583]
[1739293651707,0.004,96276.0,96257.0,0.00099169]
[1739293651919,0.004,96276.0,96263.0,0.207763]
[1739293652141,0.004,96276.0,96257.0,0.00099169]
[1739293652310,0.004,96276.0,96261.0,0.155825]
[1739293652511,0.004,96276.0,96262.0,0.02399169]
[1739293652690,0.207715,96286.0,96264.0,0.023]
[1739293652897,0.005,96272.0,96265.0,0.10250365]
[1739293653105,0.005,96272.0,96262.0,0.00099169]
[1739293653313,0.002,96272.0,96262.0,0.00099169]
[1739293653560,0.002,96272.0,96258.0,0.023]
[1739293653819,0.002,96272.0,96259.0,0.10250365]
[1739293654030,0.157809,96272.0,96259.0,0.10250365]
[1739293654177,0.15581,96271.0,96259.0,0.10250365]
[1739293654385,0.01587565,96276.0,96259.0,0.10250365]
[1739293654585,0.207738,96275.0,96259.0,0.10349534]
[1739293654784,0.002,96272.0,96259.0,0.10349534]
[1739293654998,0.155805,96274.0,96259.0,0.10349534]
[1739293655212,0.001,96271.0,96259.0,0.10349534]
[1739293656192,0.001,96271.0,96259.0,0.10449534]
[1739293656409,0.155814,96269.0,96259.0,0.10449534]
[1739293656611,0.15581,96271.0,96259.0,0.00099169]
[1739293656831,0.20774,96274.0,96257.0,0.00099169]
[1739293657017,0.002,96271.0,96258.0,0.10250365]
[1739293657534,0.002,96271.0,96257.0,0.00099169]
[1739293657535,0.155809,96272.0,96257.0,0.00099169]
[1739293657947,0.002,96271.0,96256.0,0.00124274]
[1739293658143,0.002,96271.0,96259.0,0.00022407]
[1739293658565,0.155827,96260.0,96259.0,0.00022407]
[1739293659890,0.17488641,96260.0,96259.0,0.00022407]
[1739293660240,0.01905941,96260.0,96259.0,0.00022407]
[1739293660446,0.17888641,96260.0,96259.0,0.00022407]
[1739293660844,0.18988641,96260.0,96259.0,0.00122407]
[1739293661021,0.25042765,96260.0,96259.0,0.00122407]
[1739293661293,0.18988641,96260.0,96259.0,0.00122407]
[1739293662255,0.37139006,96260.0,96259.0,0.00122407]
[1739293662712,0.155845,96249.0,96235.0,0.00491394]
[1739293662880,0.10250365,96259.0,96235.0,0.00491394]
[1739293663082,0.10250365,96259.0,96235.0,0.00590576]
[1739293663282,0.155836,96255.0,96240.0,0.155859]
[1739293663462,0.207774,96258.0,96240.0,0.155859]
[1739293663658,0.22682941,96260.0,96241.0,0.155858]
[1739293663901,0.002,96249.0,96242.0,0.00103895]
[1739293664123,0.003,96249.0,96241.0,0.00044519]
[1739293664466,0.155838,96254.0,96241.0,0.15630219]
[1739293664668,0.155838,96254.0,96242.0,0.155856]
[1739293665093,0.363627,96252.0,96242.0,0.00099182]
[1739293665290,0.207787,96252.0,96242.0,0.00099182]
[1739293665488,0.2078,96247.0,96242.0,0.00099182]
[1739293665742,0.155855,96243.0,96242.0,0.00099182]
[1739293665936,0.1922209,96243.0,96242.0,0.00099182]
[1739293666269,0.01905941,96251.0,96241.0,0.00143701]
[1739293666697,0.155857,96242.0,96241.0,0.00143701]
[1739293666963,0.01905941,96251.0,96241.0,0.00143701]
[1739293667191,0.01905941,96251.0,96241.0,0.00044519]
[1739293667397,0.01905941,96250.0,96233.0,0.17017794]
[1739293667626,0.155849,96247.0,96238.0,0.00099176]
[1739293667796,0.155855,96243.0,96242.0,0.003]
[1739293667976,0.01905941,96250.0,96242.0,0.002]
[1739293668359,0.00044492,96251.0,96242.0,0.002]
[1739293668557,0.207792,96250.0,96242.0,0.002]
[1739293669196,0.155846,96249.0,96230.0,0.00099176]
[1739293669393,0.155848,96248.0,96230.0,0.25937041]
[1739293669590,0.004,96250.0,96230.0,0.10250365]
[1739293670037,0.155845,96249.0,96230.0,0.10250365]
[1739293670255,0.01562899,96248.0,96230.0,0.25837865]
[1739293670479,0.01562899,96248.0,96230.0,0.10349541]
[1739293670685,0.155849,96247.0,96230.0,0.10349541]
[1739293670890,0.008,96249.0,96230.0,0.10349541]
[1739293671098,0.155847,96248.0,96235.0,0.00022428]
[1739293671303,0.155849,96247.0,96235.0,0.00022428]
[1739293671507,0.155851,96246.0,96235.0,0.00022428]
[1739293671649,0.03640799,96247.0,96235.0,0.00022428]
[1739293671854,0.00044492,96251.0,96235.0,0.00022428]
[1739293672094,0.20823692,96251.0,96235.0,0.00022428]
[1739293672296,0.155849,96247.0,96235.0,0.00022428]
[1739293672475,0.011,96248.0,96230.0,0.10250365]
[1739293672843,0.008,96248.0,96230.0,0.10250365]
[1739293673115,0.155849,96247.0,96230.0,0.25837865]
[1739293673342,0.15585,96246.0,96230.0,0.10250365]
[1739293673616,0.17490237,96246.0,96230.0,0.10250365]
[1739293673793,0.155852,96245.0,96230.0,0.25837865]
[1739293674013,0.155852,96245.0,96231.0,0.155873]
[1739293674358,0.01905237,96246.0,96232.0,0.155873]
[1739293674643,0.01905237,96246.0,96234.0,0.155869]
[1739293675012,0.01905237,96246.0,96230.0,0.10250365]
[1739293675222,0.01905237,96246.0,96233.0,0.15587]
[1739293675589,0.17490337,96246.0,96231.0,0.207833]
[1739293675787,0.161851,96246.0,96231.0,0.207833]
[1739293675987,0.161851,96246.0,96233.0,0.15587]
[1739293676185,0.01949729,96251.0,96246.0,0.0751]
[1739293676466,0.36100835,96293.0,96251.0,0.173]
[1739293676629,0.35,96293.0,96254.0,0.2481]
[1739293676848,0.155787,96286.0,96276.0,0.1558]
[1739293677050,0.20771,96288.0,96258.0,0.00103856]
[1739293677259,0.155786,96286.0,96260.0,0.023]
[1739293677604,0.35,96293.0,96275.0,0.155802]
[1739293677737,0.35,96293.0,96262.0,0.023]
[1739293677738,0.04063452,96292.0,96276.0,0.03233889]
[1739293677935,0.357,96293.0,96261.0,0.10250365]
[1739293678176,0.357,96293.0,96262.0,0.05533879]
[1739293678351,0.207701,96292.0,96269.0,0.155813]
[1739293678557,0.357,96293.0,96267.0,0.02078064]
[1739293678755,0.155792,96282.0,96271.0,0.155808]
[1739293679035,0.207701,96292.0,96267.0,0.12328429]
[1739293679240,0.155796,96280.0,96270.0,0.15581]
[1739293679495,0.155792,96282.0,96271.0,0.155809]
[1739293679650,0.155789,96284.0,96273.0,0.155805]
[1739293679855,0.35,96293.0,96268.0,0.023]
[1739293680113,0.35,96293.0,96277.0,0.207733]
[1739293680114,0.008,96288.0,96277.0,0.207733]
[1739293680353,0.002,96286.0,96285.0,0.178787]
[1739293680485,0.35,96293.0,96286.0,0.023]
[1739293680839,0.35,96293.0,96292.0,0.178776]
[1739293681043,0.35,96293.0,96292.0,0.31362677]
[1739293681404,0.35,96293.0,96292.0,0.03234712]
[1739293681611,0.35,96293.0,96279.0,0.0473]
[1739293681612,0.355,96293.0,96279.0,0.0473]
[1739293681810,0.155788,96285.0,96273.0,0.155806]
[1739293681996,0.207705,96291.0,96270.0,0.021221]
[1739293682201,0.207701,96292.0,96271.0,0.1823428]
[1739293682407,0.355,96293.0,96272.0,0.0323428]
[1739293682603,0.355,96293.0,96271.0,0.155809]
[1739293682805,0.155792,96283.0,96271.0,0.155809]
[1739293683006,0.207708,96289.0,96271.0,0.155809]
[1739293683247,0.35,96293.0,96268.0,0.15]
[1739293683449,0.155793,96282.0,96268.0,0.15]
[1739293683626,0.357,96293.0,96268.0,0.15]
[1739293683840,0.155795,96281.0,96268.0,0.305814]
[1739293684062,0.155795,96281.0,96271.0,0.155809]
[1739293684678,0.207713,96287.0,96271.0,0.155809]
[1739293685204,0.001,96281.0,96273.0,0.155806]
[1739293685344,0.001,96281.0,96273.0,0.155805]
[1739293685744,0.001,96281.0,96270.0,0.00022407]
[1739293686064,0.0218718,96281.0,96270.0,0.00022407]
[1739293686260,0.20521,96271.0,96270.0,0.00022407]
[1739293686487,0.84561365,96271.0,96270.0,0.00022407]
[1739293687107,0.99561365,96271.0,96270.0,0.00022407]
[1739293687512,0.155851,96246.0,96235.0,0.03906355]
[1739293687707,0.207785,96254.0,96235.0,0.19493055]
[1739293687979,0.207749,96270.0,96235.0,0.19493055]
[1739293687980,0.155847,96249.0,96235.0,0.155867]
[1739293688207,0.207786,96253.0,96232.0,0.207829]
[1739293688407,0.5379,96268.0,96234.0,0.155869]
[1739293688663,0.15585,96247.0,96237.0,0.155864]
[1739293688845,0.15585,96247.0,96232.0,0.207829]
[1739293689050,0.15585,96247.0,96238.0,0.155862]
[1739293689209,0.5379,96266.0,96236.0,0.207821]
[1739293689210,0.10250365,96267.0,96237.0,0.023]
[1739293689412,0.10250365,96267.0,96247.0,0.155848]
[1739293689593,0.155834,96257.0,96247.0,0.155847]
[1739293690114,0.155836,96255.0,96246.0,0.15585]
[1739293690854,0.155838,96254.0,96245.0,0.15568282]
[1739293691055,0.209778,96257.0,96243.0,0.207806]
[1739293691211,0.202755,96267.0,96239.0,0.207815]
[1739293691456,0.155839,96253.0,96245.0,0.15585]
[1739293691653,0.002,96255.0,96245.0,0.15585]
[1739293691654,0.158837,96255.0,96245.0,0.15585]
[1739293691856,0.001,96255.0,96238.0,0.023]
[1739293692084,0.00013346,96271.0,96244.0,0.15]
[1739293692247,0.00013346,96271.0,96246.0,0.023]
[1739293692449,0.00013346,96271.0,96250.0,0.14411036]
[1739293692753,0.00013346,96271.0,96270.0,0.155811]
[1739293693427,0.00013346,96271.0,96268.0,0.207752]
[1739293693633,0.00013346,96271.0,96270.0,0.155811]
[1739293694384,0.00013346,96271.0,96270.0,0.28131465]
[1739293694552,0.00013346,96271.0,96270.0,0.43131465]
[1739293694790,0.00013346,96271.0,96270.0,0.43231465]
[1739293695112,0.00013346,96271.0,96270.0,0.43131465]
[1739293695307,0.00113346,96271.0,96270.0,0.43231465]
[1739293695586,0.00113346,96271.0,96270.0,0.43131465]
[1739293696004,0.00213346,96271.0,96270.0,0.43231465]
[1739293696330,0.00213346,96271.0,96270.0,0.40931465]
[1739293696745,0.00113346,96271.0,96270.0,0.40931465]
[1739293696962,0.00313346,96271.0,96270.0,0.40931465]
[1739293697354,0.00213346,96271.0,96270.0,0.25831465]
[1739293697555,0.00213346,96271.0,96270.0,0.10350365]
[1739293697758,0.00013346,96271.0,96270.0,0.25931465]
[1739293697965,0.00213346,96271.0,96270.0,0.25831465]
[1739293698186,0.00213346,96271.0,96270.0,0.25853872]
[1739293698389,0.00313346,96271.0,96270.0,0.25953872]
[1739293699082,0.00213346,96271.0,96270.0,0.15603507]
[1739293699289,0.15794346,96271.0,96270.0,0.00022407]
[1739293699508,0.1589824,96271.0,96270.0,0.00022407]
[1739293699923,0.79738605,96271.0,96270.0,0.00022407]
[1739293700133,0.79734711,96271.0,96270.0,0.00022407]
[1739293700334,0.79734711,96271.0,96270.0,0.00122407]
[1739293700635,0.79734711,96271.0,96270.0,0.00022407]
[1739293700839,0.79634711,96271.0,96270.0,0.00022407]
[1739293701598,0.80134711,96271.0,96270.0,0.00022407]
[1739293701805,0.01313346,96271.0,96270.0,0.15022407]
[1739293702003,0.01813346,96271.0,96270.0,0.30603507]
[1739293702426,0.01813346,96271.0,96270.0,0.36453871]
[1739293702624,0.01813346,96271.0,96270.0,0.38753871]
[1739293703025,0.00513346,96271.0,96270.0,0.38753871]
[1739293703276,0.00013346,96271.0,96270.0,0.38753871]
[1739293703455,0.01313346,96271.0,96270.0,0.38753871]
[1739293703653,0.01313346,96271.0,96270.0,0.38953871]
[1739293703870,0.00013346,96271.0,96270.0,0.38753871]
[1739293704126,0.00013346,96271.0,96270.0,0.38953871]
[1739293704325,0.00313346,96271.0,96270.0,0.39053871]
[1739293704498,0.00313346,96271.0,96270.0,0.38853871]
[1739293704652,0.00113346,96271.0,96270.0,0.38953871]
[1739293704855,0.00213346,96271.0,96270.0,0.36653871]
[1739293705104,0.00213346,96271.0,96270.0,0.36553871]
[1739293705305,0.00213346,96271.0,96270.0,0.36753871]
[1739293705447,0.00313346,96271.0,96270.0,0.26503506]
[1739293705649,0.00313346,96271.0,96270.0,0.003]
[1739293706293,0.00113346,96271.0,96270.0,0.002]
[1739293706553,0.00313346,96271.0,96270.0,0.003]
[1739293706959,0.00113346,96271.0,96270.0,0.002]
[1739293707162,0.00113346,96271.0,96270.0,0.155811]
[1739293707163,0.00013346,96271.0,96270.0,0.155811]
[1739293707469,0.00113346,96271.0,96270.0,0.10350365]
[1739293707596,0.00213346,96271.0,96270.0,0.26131465]
[1739293707796,0.00213346,96271.0,96270.0,0.003]
[1739293707998,0.00013346,96271.0,96257.0,0.15]
[1739293708201,0.00013346,96271.0,96270.0,0.155811]
[1739293708401,0.00013346,96271.0,96270.0,0.157811]
[1739293708823,0.00013346,96271.0,96270.0,0.155811]
[1739293709016,0.00013346,96271.0,96270.0,0.157811]
[1739293709510,0.00013346,96271.0,96270.0,0.43331465]
[1739293709713,0.00113346,96271.0,96270.0,0.43431465]
[1739293710346,0.00013346,96271.0,96270.0,0.4869032]
[1739293710761,0.00113346,96271.0,96270.0,0.45557345]
[1739293710968,0.00113346,96271.0,96270.0,0.45357345]
[1739293711176,0.00113346,96271.0,96270.0,0.30803486]
[1739293711391,0.00113346,96271.0,96270.0,0.30903486]
[1739293711633,0.00213346,96271.0,96270.0,0.30903486]
[1739293712041,0.00213346,96271.0,96270.0,0.00322386]
[1739293712236,0.00224006,96271.0,96270.0,0.00322386]
[1739293712459,0.00124006,96271.0,96266.0,0.207757]
[1739293712785,0.00024006,96271.0,96270.0,0.155811]
[1739293713118,0.00024006,96271.0,96270.0,0.164811]
[1739293713119,0.00124006,96271.0,96270.0,0.164811]
[1739293713526,0.00024006,96271.0,96270.0,0.155811]
[1739293713922,0.00124006,96271.0,96270.0,0.159811]
[1739293714129,0.00124006,96271.0,96270.0,0.155811]
[1739293714331,0.00024006,96271.0,96270.0,0.158811]
[1739293714713,0.00124006,96271.0,96270.0,0.164811]
[1739293715712,0.15705006,96271.0,96270.0,0.009]
[1739293715911,0.00124006,96271.0,96270.0,0.009]
[1739293716478,0.00124006,96271.0,96270.0,0.26731465]
[1739293717601,0.00024006,96271.0,96270.0,0.155811]
[1739293717831,0.00124006,96271.0,96270.0,0.163811]
[1739293718038,0.00124006,96271.0,96270.0,0.164811]
[1739293721678,0.1558937,96286.0,96270.0,0.164811]
[1739293721679,0.0001067,96286.0,96270.0,0.56561465]
[1739293721846,0.0001067,96286.0,96285.0,0.155787]
[1739293722047,0.0001067,96286.0,96285.0,0.28129065]
[1739293723232,0.0021067,96286.0,96285.0,0.28129065]
[1739293723441,0.0021067,96286.0,96285.0,0.31364423]
[1739293723656,0.0021067,96286.0,96285.0,0.28129065]
[1739293723881,0.0061067,96286.0,96285.0,0.28129065]
[1739293724101,0.0061067,96286.0,96285.0,0.31363725]
[1739293724321,0.0061067,96286.0,96285.0,0.28129065]
[1739293724872,0.0001067,96286.0,96285.0,0.30254299]
[1739293725122,0.0001067,96286.0,96285.0,0.31654299]
[1739293725277,0.0011067,96286.0,96285.0,0.31654299]
[1739293726305,0.0011067,96286.0,96285.0,0.169787]
[1739293726988,0.0011067,96286.0,96285.0,0.014]
[1739293727680,0.0011067,96286.0,96274.0,0.02068634]
[1739293727808,0.0011067,96286.0,96276.0,0.207734]
[1739293728018,0.155813,96269.0,96259.0,4e-05]
[1739293728639,0.27389795,96269.0,96259.0,4e-05]
[1739293728854,0.25831665,96269.0,96259.0,4e-05]
[1739293729523,0.27226663,96269.0,96259.0,4e-05]
[1739293730650,0.27326663,96269.0,96268.0,0.00322386]
[1739293731235,0.27426663,96269.0,96268.0,0.00022386]
[1739293731648,0.28326663,96269.0,96268.0,0.00022386]
[1739293731893,0.92367028,96269.0,96268.0,0.00022386]
[1739293732401,1.14877028,96269.0,96268.0,0.00022386]
[1739293732610,0.15,96268.0,96236.0,0.03897]
[1739293732788,0.155853,96244.0,96236.0,0.03897]
[1739293733021,0.155853,96244.0,96236.0,0.00044492]
[1739293733418,0.207778,96257.0,96236.0,0.00044492]
[1739293733572,0.155852,96246.0,96236.0,0.00044492]
[1739293733971,0.155851,96246.0,96236.0,0.00044492]
[1739293734219,0.155857,96242.0,96236.0,0.00044492]
[1739293734355,0.207805,96244.0,96236.0,0.00044492]
[1739293734556,0.32400057,96256.0,96236.0,0.00044492]
[1739293734765,0.155854,96244.0,96236.0,0.00044492]
[1739293734963,0.033439,96255.0,96236.0,0.00044492]
[1739293735334,0.10354259,96255.0,96236.0,0.00044492]
[1739293735479,0.155851,96246.0,96236.0,0.00044492]
[1739293736709,0.207785,96253.0,96236.0,0.00044492]
[1739293736945,0.01371792,96256.0,96236.0,0.00044492]
[1739293737132,0.005,96255.0,96236.0,0.00066878]
[1739293737533,0.155837,96254.0,96236.0,0.15653478]
[1739293737738,0.009,96246.0,96236.0,0.15653478]
[1739293737951,0.009,96246.0,96241.0,0.155858]
[1739293738207,0.155837,96254.0,96241.0,0.155858]
[1739293738437,0.155845,96249.0,96237.0,0.155865]
[1739293738624,0.155843,96251.0,96238.0,0.023]
[1739293738784,0.0576387,96254.0,96240.0,0.023]
[1739293739004,0.207787,96252.0,96239.0,0.023]
[1739293739354,0.15628519,96253.0,96239.0,0.023]
[1739293739559,0.155849,96247.0,96233.0,0.15587]
[1739293739756,0.155847,96248.0,96234.0,0.155869]
[1739293739950,0.155847,96248.0,96235.0,0.023]
[1739293740466,0.002,96246.0,96234.0,0.023]
[1739293740647,0.209802,96246.0,96229.0,0.155877]
[1739293740848,0.209802,96246.0,96224.0,0.207847]
[1739293740849,0.155852,96245.0,96232.0,0.023]
[1739293741187,0.00103894,96244.0,96225.0,0.023]
[1739293741401,0.004,96248.0,96222.0,7e-05]
[1739293741402,0.10250365,96243.0,96222.0,7e-05]
[1739293741615,0.00103894,96242.0,96222.0,7e-05]
[1739293741831,0.04425486,96241.0,96222.0,7e-05]
[1739293742031,0.00103894,96240.0,96222.0,7e-05]
[1739293742230,0.155878,96229.0,96222.0,7e-05]
[1739293742441,0.04425486,96241.0,96216.0,0.15549721]
[1739293742442,0.207841,96227.0,96216.0,0.11314074]
[1739293742739,0.207836,96230.0,96216.0,0.11314074]
[1739293742933,0.5379,96240.0,96216.0,0.11314074]
[1739293743281,0.155882,96227.0,96216.0,0.11314074]
[1739293743468,0.207832,96232.0,96217.0,0.023]
[1739293743701,0.00103894,96231.0,96217.0,0.023]
[1739293743916,0.155886,96224.0,96217.0,0.023]
[1739293744089,0.207847,96225.0,96217.0,0.023]
[1739293744345,0.155884,96226.0,96217.0,0.023]
[1739293744551,0.155886,96224.0,96217.0,0.023]
[1739293744705,0.207843,96227.0,96217.0,0.023]
[1739293745104,0.00044492,96227.0,96217.0,0.023]
[1739293745302,0.15589,96222.0,96217.0,0.023]
[1739293745503,0.155887,96224.0,96217.0,0.023]
[1739293746079,0.00044492,96227.0,96217.0,0.023]
[1739293746476,0.155885,96225.0,96217.0,0.023]
[1739293747053,0.155886,96224.0,96217.0,0.023]
[1739293747255,0.00144492,96227.0,96226.0,0.328883]
[1739293747454,0.155845,96249.0,96226.0,0.10250365]
[1739293747667,0.0155845,96249.0,96227.0,0.10250365]
[1739293747903,0.0155845,96249.0,96240.0,0.023]
[1739293748031,0.00103894,96253.0,96242.0,0.023]
[1739293748233,0.155838,96254.0,96242.0,0.023]
[1739293748529,0.207766,96262.0,96229.0,0.023]
[1739293748730,0.155828,96260.0,96244.0,0.023]
[1739293748867,0.09198627,96272.0,96250.0,0.023]
[1739293749068,0.155833,96257.0,96244.0,0.155853]
[1739293749300,0.001,96249.0,96223.0,0.255249]
[1739293749515,0.001,96249.0,96239.0,0.023]
[1739293749716,0.001,96249.0,96245.0,0.023]
[1739293750100,0.001,96249.0,96243.0,0.023]
[1739293750514,0.001,96249.0,96242.0,0.023]
[1739293750709,0.001,96249.0,96244.0,0.023]
[1739293750914,0.001,96249.0,96243.0,0.230805]
[1739293751277,0.001,96249.0,96245.0,0.023]
[1739293751402,0.005,96249.0,96247.0,0.155848]
[1739293751608,0.005,96249.0,96248.0,0.178847]
[1739293752297,0.006,96249.0,96248.0,0.178847]
[1739293752492,0.006,96249.0,96248.0,0.023]
[1739293752698,0.006,96249.0,96248.0,0.178847]
[1739293752958,0.005,96249.0,96248.0,0.178847]
[1739293753313,0.155825,96262.0,96249.0,0.178844]
[1739293753747,0.5379,96273.0,96260.0,0.155826]
[1739293753748,0.155807,96273.0,96260.0,0.155826]
[1739293754094,0.20774,96275.0,96261.0,0.023]
[1739293754292,0.01327428,96282.0,96261.0,0.023]
[1739293754466,0.01327428,96282.0,96256.0,0.023]
[1739293754467,0.10354259,96281.0,96256.0,0.023]
[1739293754667,0.10354259,96281.0,96248.0,0.001]
[1739293754875,0.207745,96272.0,96253.0,0.023]
[1739293755048,0.155808,96272.0,96260.0,0.178827]
[1739293755246,0.155809,96272.0,96260.0,0.023]
[1739293755450,0.10250365,96281.0,96260.0,0.023]
[1739293755649,0.155812,96270.0,96260.0,0.023]
[1739293755850,0.155813,96269.0,96259.0,0.023]
[1739293756179,0.155812,96270.0,96259.0,0.023]
[1739293756551,0.155812,96270.0,96260.0,0.001]
[1739293756755,0.155815,96268.0,96260.0,0.001]
[1739293756960,0.015,96272.0,96260.0,0.001]
[1739293757163,0.222746,96272.0,96260.0,0.001]
[1739293757362,0.00103894,96271.0,96256.0,0.207778]
[1739293757564,0.10250365,96281.0,96262.0,0.155824]
[1739293757766,0.207736,96276.0,96258.0,0.207773]
[1739293757972,0.004,96270.0,96259.0,0.001]
[1739293758133,0.004,96270.0,96259.0,0.156829]
[1739293758509,0.155813,96269.0,96254.0,0.207781]
[1739293759054,0.207744,96272.0,96255.0,0.155835]
[1739293759251,0.207744,96272.0,96247.0,0.207797]
[1739293759472,0.207749,96270.0,96249.0,0.02128452]
[1739293759658,0.00103894,96269.0,96246.0,0.15]
[1739293759859,0.155818,96266.0,96251.0,0.155842]
[1739293760059,0.15582,96265.0,96247.0,0.207797]
[1739293760284,0.00103894,96276.0,96249.0,0.155844]
[1739293760503,0.10354259,96275.0,96247.0,0.207797]
[1739293760700,0.10354259,96275.0,96242.0,0.020733]
[1739293760701,0.207777,96257.0,96242.0,0.020733]
[1739293760876,0.15584,96253.0,96242.0,0.020733]
[1739293761074,0.00103894,96252.0,96231.0,0.08270615]
[1739293761294,0.00103894,96259.0,96231.0,0.08270615]
[1739293761493,0.00103894,96259.0,96230.0,0.207835]
[1739293761494,0.155844,96250.0,96212.0,0.00022407]
[1739293761724,0.00103894,96249.0,96228.0,0.155878]
[1739293761921,0.207779,96256.0,96233.0,0.15587]
[1739293762126,0.155843,96251.0,96248.0,0.00513346]
[1739293762328,0.155844,96250.0,96248.0,0.00313346]
[1739293762533,0.155847,96249.0,96228.0,0.155878]
[1739293762738,0.155847,96249.0,96229.0,0.03237261]
[1739293763117,0.155844,96250.0,96230.0,0.155876]
[1739293763743,0.00013346,96253.0,96231.0,0.03238056]
[1739293763918,0.00013346,96253.0,96232.0,0.10250365]
[1739293764152,0.003,96249.0,96234.0,0.0752]
[1739293764329,0.003,96249.0,96235.0,0.03238056]
[1739293764546,0.00013346,96253.0,96238.0,0.155862]
[1739293764804,0.00513346,96253.0,96239.0,0.10250365]
[1739293765000,0.00613346,96253.0,96239.0,0.10250365]
[1739293765298,0.00113346,96253.0,96239.0,0.10250365]
[1739293765702,0.00013346,96253.0,96239.0,0.10250365]
[1739293766313,0.00013346,96253.0,96241.0,0.155858]
[1739293766946,0.001,96249.0,96241.0,0.155858]
[1739293767154,0.001,96249.0,96239.0,0.10250365]
[1739293767355,0.001,96249.0,96239.0,0.05850364]
[1739293767554,0.001,96249.0,96247.0,0.155847]
[1739293767896,0.001,96249.0,96247.0,0.25835065]
[1739293768135,0.00013346,96253.0,96250.0,0.155843]
[1739293768339,0.00113346,96253.0,96251.0,0.155841]
[1739293768739,0.00013346,96253.0,96251.0,0.155841]
[1739293769416,0.00013346,96253.0,96252.0,0.10354244]
[1739293769618,0.0001066,96270.0,96252.0,0.25449644]
[1739293769816,0.0001066,96270.0,96269.0,0.155813]
[1739293769966,0.0001066,96270.0,96269.0,0.18817734]
[1739293770542,0.0001066,96270.0,96269.0,0.29068099]
[1739293771348,0.0001066,96270.0,96269.0,0.25831665]
[1739293771606,0.0001066,96270.0,96267.0,0.207754]
[1739293771853,0.0001066,96270.0,96268.0,0.25831665]
[1739293772466,0.0001066,96270.0,96269.0,0.001]
[1739293772814,0.0001066,96270.0,96268.0,0.155813]
[1739293773022,0.0001066,96270.0,96268.0,0.17705795]
[1739293773763,0.0001066,96270.0,96268.0,0.02124495]
[1739293774172,0.305813,96269.0,96268.0,0.001]
[1739293774629,0.15,96269.0,96268.0,0.001]
[1739293775362,0.15,96268.0,96267.0,0.155816]
[1739293776325,0.006,96269.0,96258.0,0.207774]